bitfinex/quotes_ETHUSD_20251118
["timestamp","ask_amount","ask_price","bid_price","bid_amount"]
[1763484540639,0.002,3162.8,3162.5,0.4228]
[1763484540956,0.002,3163.2,3162.8,1.31249664]
[1763484541139,0.002,3163.2,3163.1,0.546404]
[1763484541339,0.002,3163.2,3163.1,1.02316252]
[1763484541539,0.002,3163.2,3163.1,0.405504]
[1763484541794,0.0012,3163.2,3163.1,0.405504]
[1763484542098,0.4756,3163.2,3162.1,0.1409]
[1763484542683,0.4756,3163.2,3162.2,0.405504]
[1763484542974,0.4756,3163.2,3162.2,1.03467879]
[1763484543137,0.4756,3163.2,3162.2,0.405504]
[1763484543543,0.4756,3163.2,3163.1,0.1409]
[1763484543544,0.0012,3163.2,3163.1,0.1409]
[1763484543736,0.0012,3163.2,3163.1,0.546404]
[1763484543962,0.0012,3163.2,3163.1,0.405504]
[1763484544288,0.0012,3163.2,3162.6,1.31249664]
[1763484544587,0.0012,3163.2,3163.1,0.1409]
[1763484544747,0.0012,3163.2,3163.1,1.45339664]
[1763484544949,0.002,3163.4,3163.2,0.405504]
[1763484545175,0.002,3163.5,3163.2,0.828304]
[1763484545563,0.002,3163.5,3163.4,0.405504]
[1763484545975,0.002,3163.5,3163.4,0.4228]
[1763484546187,0.002,3163.5,3163.2,0.405504]
[1763484546346,0.002,3163.5,3163.4,0.405504]
[1763484546750,0.002,3163.5,3163.2,0.405504]
[1763484547483,0.002,3163.5,3162.2,0.62418219]
[1763484547712,0.002,3163.5,3162.3,0.4228]
[1763484547913,0.4792,3163.4,3162.2,0.62418219]
[1763484548126,0.4792,3163.4,3162.2,1.53117483]
[1763484548609,0.4792,3163.4,3162.3,0.405504]
[1763484548828,0.4792,3163.4,3162.7,0.405504]
[1763484549210,0.4792,3163.4,3162.7,1.31249664]
[1763484550538,0.002,3163.5,3162.7,1.31249664]
[1763484550735,0.002,3163.5,3163.4,0.405504]
[1763484551090,0.002,3163.5,3163.2,0.90699264]
[1763484551337,0.002,3163.5,3163.3,0.405504]
[1763484551988,0.002,3163.5,3163.2,0.90699264]
[1763484551989,0.002,3163.5,3162.7,1.31249664]
[1763484552197,0.4792,3163.4,3162.2,0.62418219]
[1763484552430,0.1891,3162.7,3162.2,0.62418219]
[1763484552800,0.4792,3162.6,3161.0,0.001]
[1763484553004,0.1891,3161.7,3161.0,0.001]
[1763484553313,2.7691,3161.7,3161.0,0.001]
[1763484553500,3.2483,3161.7,3161.0,0.001]
[1763484554016,0.4792,3161.6,3161.0,0.001]
[1763484556434,0.80403,3161.6,3161.0,0.001]
[1763484556919,0.4792,3161.5,3161.0,0.001]
[1763484561301,2.7691,3161.7,3161.0,0.001]
[1763484561506,2.7691,3161.7,3161.1,0.1409]
[1763484561701,2.7691,3161.7,3161.0,0.03263555]
[1763484561702,2.58,3161.7,3161.2,0.405504]
[1763484562509,2.58,3161.8,3161.4,0.405504]
[1763484562729,2.58,3162.6,3161.6,0.405504]
[1763484563467,0.4757,3162.5,3161.3,0.405504]
[1763484563834,0.4757,3162.5,3161.1,0.1409]
[1763484564035,0.4757,3162.5,3161.2,0.405504]
[1763484564675,0.4757,3162.5,3161.2,1.73529664]
[1763484564877,0.4757,3162.5,3161.2,1.31249664]
[1763484565247,0.4749,3162.5,3161.2,1.31249664]
[1763484565466,0.4749,3162.5,3161.2,0.405504]
[1763484565864,0.7993,3162.5,3161.0,0.001]
[1763484566177,0.7993,3162.5,3161.2,0.405504]
[1763484566425,0.7993,3162.5,3160.7,0.001]
[1763484566426,0.1924,3161.1,3160.7,0.001]
[1763484566694,0.1924,3161.1,3160.6,0.001]
[1763484567105,0.1924,3161.1,3158.7,0.90699264]
[1763484567255,0.4757,3161.0,3158.7,0.90699264]
[1763484567682,0.4757,3161.0,3158.9,0.5695]
[1763484568052,0.4757,3161.0,3158.9,0.1409]
[1763484568259,0.4757,3161.0,3159.3,0.4286]
[1763484568498,0.4757,3161.0,3159.4,0.405504]
[1763484569171,0.1924,3161.1,3160.2,0.405504]
[1763484569998,0.4757,3161.0,3160.5,0.405504]
[1763484570202,0.1924,3161.1,3160.4,0.001]
[1763484570999,0.6681,3161.1,3160.4,0.001]
[1763484571868,0.4757,3161.0,3160.4,0.001]
[1763484577897,0.50483992,3161.0,3160.4,0.001]
[1763484579299,0.4757,3161.0,3160.4,0.001]
[1763484579691,0.461,3160.5,3160.4,0.001]
[1763484580070,0.9459,3160.5,3160.4,0.001]
[1763484583106,0.4076,3160.4,3160.0,0.001]
[1763484583305,0.4605,3160.1,3159.7,0.001]
[1763484583522,0.5935,3159.8,3158.0,0.4286]
[1763484583808,0.5935,3159.8,3158.1,0.405504]
[1763484584101,0.4849,3159.7,3158.0,0.4286]
[1763484584311,0.4849,3159.7,3157.6,0.4306]
[1763484584312,0.1873,3159.0,3157.6,0.4306]
[1763484584470,0.1873,3159.0,3157.9,0.1437]
[1763484584665,0.1873,3159.0,3158.1,0.405504]
[1763484584969,0.1873,3159.0,3157.6,0.4306]
[1763484585169,0.6722,3159.0,3157.6,0.63116997]
[1763484585399,0.4849,3158.9,3157.1,0.4306]
[1763484586811,0.4849,3158.9,3157.2,0.405504]
[1763484587012,0.4849,3158.9,3157.1,1.06662921]
[1763484587169,0.1873,3159.0,3157.2,0.4306]
[1763484587369,0.4849,3159.2,3157.3,0.405504]
[1763484587565,0.4849,3159.7,3157.8,1.31249664]
[1763484587782,0.4849,3159.7,3157.9,0.405504]
[1763484588000,0.4849,3159.7,3157.9,0.836104]
[1763484588386,0.4849,3159.7,3158.0,0.4306]
[1763484588768,0.4841,3159.7,3158.2,0.405504]
[1763484589006,0.4841,3159.7,3158.2,0.836904]
[1763484589504,0.1873,3159.8,3158.1,0.1445]
[1763484589505,0.1873,3159.8,3158.4,0.405504]
[1763484589704,0.1873,3159.8,3158.6,0.405504]
[1763484589917,0.1873,3160.0,3158.6,0.405504]
[1763484590071,0.1873,3160.0,3158.8,0.405504]
[1763484590266,0.1873,3160.0,3159.0,0.405504]
[1763484590687,0.1873,3160.0,3159.2,0.405504]
[1763484591606,0.02913992,3160.9,3159.2,0.836904]
[1763484591913,2.58,3160.9,3159.2,0.836904]
[1763484592208,3.0649,3160.9,3159.4,0.405504]
[1763484592368,2.7673,3161.0,3159.6,0.405504]
[1763484592572,0.4849,3160.8,3159.6,0.405504]
[1763484593498,0.4849,3160.8,3159.1,0.1409]
[1763484593499,0.51403992,3160.8,3159.1,0.1409]
[1763484593798,0.4849,3160.8,3159.2,0.836904]
[1763484593995,0.4849,3160.8,3159.3,0.405504]
[1763484594202,0.4849,3160.8,3159.3,0.836904]
[1763484596200,0.4849,3160.8,3159.4,0.4314]
[1763484597802,0.4849,3160.8,3159.5,0.405504]
[1763484598413,0.4849,3160.8,3159.5,0.4314]
[1763484598577,2.7693,3161.0,3159.5,0.4314]
[1763484598780,3.2542,3161.0,3159.5,0.4314]
[1763484599483,0.4849,3160.9,3159.5,0.4314]
[1763484599680,0.4849,3160.9,3159.2,0.405504]
[1763484599910,0.4849,3160.9,3159.2,0.836904]
[1763484600327,0.4849,3160.9,3159.3,0.4314]
[1763484601437,2.7693,3161.0,3159.4,0.405504]
[1763484601605,2.7693,3161.0,3159.6,1.31249664]
[1763484601606,2.582,3161.0,3159.6,1.31249664]
[1763484601935,2.582,3161.0,3159.8,0.405504]
[1763484601936,3.0669,3161.0,3159.8,0.405504]
[1763484602139,0.4849,3160.9,3159.8,0.405504]
[1763484602299,2.88869,3161.0,3160.0,0.405504]
[1763484602300,2.582,3161.0,3160.0,0.405504]
[1763484602496,2.582,3161.0,3159.5,6.84639126]
[1763484602497,2.582,3161.0,3160.2,0.405504]
[1763484603398,2.582,3161.0,3160.4,0.405504]
[1763484603795,2.582,3161.0,3160.2,0.405504]
[1763484604839,0.461,3160.3,3158.8,0.4314]
[1763484605020,0.461,3160.3,3157.8,9.68384076]
[1763484605021,0.4178,3160.2,3158.4,0.4314]
[1763484605429,0.4849,3160.1,3158.4,0.62105146]
[1763484605611,0.4849,3160.1,3157.8,6.84739126]
[1763484605612,0.4849,3160.1,3157.9,0.4314]
[1763484605796,0.42427,3160.0,3157.8,0.001]
[1763484605998,0.42427,3160.0,3158.2,0.405504]
[1763484606200,0.6724,3159.9,3157.8,0.001]
[1763484606401,0.476,3159.8,3157.9,0.4314]
[1763484606601,0.476,3159.8,3158.1,0.7890671]
[1763484606837,0.476,3159.8,3158.1,0.1455]
[1763484607054,0.476,3159.8,3158.2,0.4314]
[1763484607203,0.1964,3159.9,3158.2,0.4314]
[1763484607398,0.1964,3159.9,3158.3,0.405504]
[1763484607731,0.6724,3159.9,3158.3,0.405504]
[1763484608059,0.6724,3159.9,3158.5,0.405504]
[1763484608369,0.476,3159.8,3158.1,0.5769]
[1763484608566,0.476,3159.8,3158.1,1.21626272]
[1763484608767,0.476,3159.8,3158.2,0.405504]
[1763484609132,0.1964,3159.9,3158.2,0.836904]
[1763484609633,1.09429264,3160.9,3158.7,1.31249664]
[1763484609634,0.476,3160.6,3158.7,1.31249664]
[1763484610054,0.476,3160.6,3158.9,0.405504]
[1763484610257,0.1873,3160.9,3158.8,0.4314]
[1763484610463,0.6633,3160.9,3158.9,0.405504]
[1763484610662,0.6633,3160.9,3158.9,0.679504]
[1763484610965,0.476,3160.8,3159.1,0.405504]
[1763484611343,0.476,3160.8,3159.3,0.405504]
[1763484611344,0.002,3159.9,3159.3,0.405504]
[1763484612269,0.0012,3159.9,3159.4,0.4314]
[1763484612836,0.0012,3159.9,3159.3,0.405504]
[1763484614370,0.0012,3159.9,3159.1,0.1409]
[1763484614559,0.0012,3159.9,3159.2,0.405504]
[1763484614942,0.0012,3159.9,3159.2,0.836904]
[1763484615543,0.0012,3159.9,3159.3,0.4314]
[1763484617462,0.0012,3159.9,3159.8,0.836904]
[1763484617973,0.0012,3159.9,3159.8,1.268304]
[1763484619481,0.0012,3159.9,3159.8,0.836904]
[1763484619943,0.0012,3159.9,3159.8,1.48386563]
[1763484620339,0.0012,3159.9,3159.8,1.05246563]
[1763484620561,0.0012,3159.9,3159.8,1.48386563]
[1763484620748,0.0012,3159.9,3159.8,6.25085827]
[1763484621152,0.1893,3159.9,3159.8,1.55395427]
[1763484621355,1.1395,3159.9,3159.4,0.64063904]
[1763484621572,1.1395,3159.9,3158.4,0.7054]
[1763484621785,0.4649,3159.8,3158.4,0.4314]
[1763484622583,0.4649,3159.8,3158.5,0.405504]
[1763484622884,0.4649,3159.8,3158.4,0.4314]
[1763484623600,0.0012,3159.9,3158.5,0.90699264]
[1763484623743,0.0012,3159.9,3159.8,0.836904]
[1763484624149,0.0012,3159.9,3159.8,1.268304]
[1763484624357,0.0012,3159.9,3159.8,0.405504]
[1763484624555,0.0012,3159.9,3159.8,0.43715157]
[1763484624760,0.0012,3159.9,3159.8,0.405504]
[1763484624983,0.0012,3159.9,3159.8,1.268304]
[1763484625793,0.0012,3159.9,3159.8,0.836904]
[1763484625960,0.0012,3159.9,3159.8,1.46928299]
[1763484626286,0.0012,3159.9,3159.8,0.405504]
[1763484626589,0.0012,3159.9,3159.5,0.1409]
[1763484626741,0.0012,3159.9,3159.6,0.405504]
[1763484627089,0.0012,3159.9,3159.8,0.4314]
[1763484627290,0.0012,3159.9,3159.7,0.6457774]
[1763484627445,0.0012,3159.9,3159.8,0.405504]
[1763484627892,0.0012,3159.9,3159.8,0.4314]
[1763484628061,0.0012,3159.9,3159.8,1.268304]
[1763484628460,0.0012,3159.9,3159.8,0.836904]
[1763484629448,0.0012,3159.9,3159.8,0.405504]
[1763484629856,0.0012,3159.9,3159.8,0.836904]
[1763484630656,0.0012,3159.9,3159.8,0.405504]
[1763484633246,0.1893,3159.9,3159.8,0.405504]
[1763484633453,1.1395,3159.9,3159.7,0.63313983]
[1763484633648,1.1395,3159.9,3158.3,10.01360363]
[1763484633649,0.4143,3159.8,3158.6,0.00707673]
[1763484633862,0.4143,3159.8,3158.5,0.001]
[1763484633863,0.8792,3159.8,3158.5,0.001]
[1763484634060,0.4143,3159.8,3158.6,0.4314]
[1763484634268,0.4649,3159.7,3158.6,0.4314]
[1763484635485,0.4649,3159.7,3158.5,0.001]
[1763484635653,0.4641,3159.7,3158.6,0.405504]
[1763484636054,0.4641,3159.7,3158.5,0.001]
[1763484636249,0.4641,3159.7,3158.7,0.405504]
[1763484636485,0.1893,3159.9,3158.7,0.837704]
[1763484636982,0.1893,3159.9,3158.5,0.406504]
[1763484637389,0.1893,3159.9,3158.5,0.001]
[1763484637806,0.1893,3159.9,3158.5,0.64004558]
[1763484637807,0.4907,3159.8,3158.5,0.64004558]
[1763484638126,0.4907,3159.8,3158.5,0.001]
[1763484638483,0.1836,3158.6,3158.5,0.001]
[1763484638678,0.4907,3159.8,3158.5,0.001]
[1763484638880,0.4907,3159.7,3158.5,0.001]
[1763484639084,0.4907,3159.7,3158.6,0.405504]
[1763484639336,0.4907,3159.7,3158.5,0.62076321]
[1763484639337,0.4907,3159.7,3158.5,0.001]
[1763484639494,0.4907,3159.7,3158.5,0.65013076]
[1763484639695,0.4907,3159.7,3158.7,0.405504]
[1763484639897,0.1893,3159.9,3158.7,0.405504]
[1763484640113,0.4907,3159.8,3158.7,0.405504]
[1763484640315,0.4907,3159.8,3158.7,0.837704]
[1763484640826,0.1893,3159.9,3158.6,0.274]
[1763484641023,0.1893,3159.9,3158.9,0.405504]
[1763484641224,0.68,3159.9,3158.9,0.405504]
[1763484641736,0.4907,3159.8,3158.7,0.405504]
[1763484641902,0.4907,3159.8,3158.6,0.405504]
[1763484642515,0.4907,3159.8,3158.6,0.837704]
[1763484643413,0.1893,3159.9,3158.8,0.405504]
[1763484643613,0.68,3159.9,3158.8,0.405504]
[1763484644119,0.4907,3159.8,3158.6,0.405504]
[1763484644336,0.4907,3159.8,3158.9,0.405504]
[1763484644632,0.1893,3159.9,3158.9,0.837704]
[1763484645126,0.0012,3159.9,3159.0,0.4322]
[1763484645356,0.0012,3159.9,3159.1,0.405504]
[1763484645655,0.0012,3159.9,3159.8,0.547204]
[1763484645947,0.0012,3159.9,3159.8,0.405504]
[1763484646148,0.0012,3159.9,3159.8,0.837704]
[1763484646661,0.0012,3159.9,3159.8,0.405504]
[1763484647916,1.1752,3159.9,3159.8,0.405504]
[1763484648160,1.1752,3159.9,3159.1,0.4322]
[1763484648161,1.1752,3159.9,3159.1,0.1417]
[1763484648317,0.6845,3159.9,3159.2,0.405504]
[1763484648516,0.6845,3159.9,3159.8,0.837704]
[1763484648517,0.0012,3159.9,3159.8,0.837704]
[1763484648713,0.0012,3159.9,3159.8,7.28434023]
[1763484648959,0.0012,3159.9,3159.8,8.62353287]
[1763484649961,0.0012,3159.9,3159.8,1.31249664]
[1763484650326,0.6845,3159.9,3159.8,1.31249664]
[1763484650556,0.1848,3159.9,3159.8,1.31249664]
[1763484650782,0.0012,3159.9,3159.8,1.31249664]
[1763484651073,0.6845,3159.9,3159.8,0.405504]
[1763484651737,0.6845,3159.9,3159.2,0.405504]
[1763484652257,0.0012,3159.9,3159.2,0.405504]
[1763484653959,0.0012,3159.9,3159.8,0.4322]
[1763484654128,0.0012,3159.9,3159.8,0.837704]
[1763484654326,0.002,3160.3,3159.9,1.31249664]
[1763484654521,0.002,3160.6,3159.9,1.31249664]
[1763484654522,0.002,3160.6,3160.3,0.405504]
[1763484654721,0.002,3160.6,3160.2,0.983604]
[1763484654722,0.002,3160.6,3160.5,8.19133287]
[1763484654925,0.6743,3162.0,3160.6,1.31249664]
[1763484655150,0.6743,3162.0,3160.9,0.837704]
[1763484655334,0.6743,3162.0,3160.9,1.4761376]
[1763484655772,0.6743,3162.0,3160.9,1.9083376]
[1763484655928,0.6743,3162.0,3160.9,0.837704]
[1763484657024,0.6743,3162.0,3160.9,1.269904]
[1763484657759,0.6743,3162.0,3160.9,0.837704]
[1763484657958,0.6743,3162.0,3160.9,1.269904]
[1763484658163,0.6743,3162.0,3160.9,0.837704]
[1763484658369,0.6743,3162.0,3160.9,1.269904]
[1763484658685,0.1836,3162.0,3160.9,1.48247567]
[1763484658890,0.4927,3161.7,3160.9,1.05027567]
[1763484659164,2.5812,3161.0,3160.9,1.91467567]
[1763484660331,2.5812,3161.0,3160.9,1.48247567]
[1763484660556,2.5812,3161.0,3160.9,1.91467567]
[1763484661780,2.5812,3161.0,3160.9,1.48247567]
[1763484662486,2.5812,3161.0,3160.9,1.51411222]
[1763484662697,0.002,3161.7,3161.0,0.405504]
[1763484662981,0.002,3161.7,3161.4,1.31249664]
[1763484663179,0.002,3161.7,3161.6,0.837704]
[1763484663672,0.4907,3163.0,3161.6,0.837704]
[1763484663673,0.4907,3163.0,3161.7,0.405504]
[1763484663879,0.4907,3163.0,3162.0,1.31249664]
[1763484664248,0.4907,3163.0,3162.2,0.405504]
[1763484664445,0.4927,3163.4,3162.2,0.405504]
[1763484664671,0.002,3163.4,3162.5,1.31249664]
[1763484664848,0.002,3163.4,3162.7,0.405504]
[1763484665362,0.002,3163.4,3162.9,0.405504]
[1763484665573,0.002,3163.4,3162.2,0.4322]
[1763484665574,0.4907,3163.3,3161.3,0.05]
[1763484665741,0.1836,3162.6,3162.2,0.405504]
[1763484666089,0.1836,3162.6,3161.7,0.1445]
[1763484666090,0.499,3162.3,3161.7,0.1445]
[1763484666248,0.499,3162.3,3160.7,0.05]
[1763484666249,0.1902,3161.8,3161.1,0.90699264]
[1763484666438,0.499,3162.3,3161.2,0.273]
[1763484666439,0.498,3162.2,3161.2,0.273]
[1763484666638,0.498,3162.5,3161.2,0.273]
[1763484666864,0.498,3162.5,3161.1,1.48369264]
[1763484667051,0.498,3162.5,3161.2,0.273]
[1763484667370,0.498,3162.5,3161.3,0.405504]
[1763484667536,0.498,3162.5,3161.6,1.31249664]
[1763484667741,0.498,3162.5,3161.6,1.58549664]
[1763484668682,0.498,3162.5,3161.2,0.4322]
[1763484668683,0.498,3162.5,3161.4,0.273]
[1763484668881,0.498,3162.5,3160.5,9.61067466]
[1763484668882,0.1902,3161.5,3160.5,9.61067466]
[1763484669067,0.1902,3161.5,3160.6,3.16394214]
[1763484669268,0.1902,3161.5,3160.7,0.273]
[1763484669514,0.1902,3161.5,3160.7,1.17999264]
[1763484669674,0.1902,3161.5,3160.9,0.90699264]
[1763484669877,0.1902,3161.5,3160.8,0.273]
[1763484670100,0.1902,3161.5,3160.5,4.50322268]
[1763484670297,0.1902,3161.5,3160.6,0.273]
[1763484670616,0.1836,3162.6,3160.6,0.90078185]
[1763484670617,0.498,3161.4,3160.6,0.90078185]
[1763484670770,0.498,3161.4,3160.4,6.44663623]
[1763484670970,0.1902,3160.5,3160.4,0.64709236]
[1763484671285,0.1902,3161.0,3160.2,0.1459]
[1763484672363,0.498,3160.9,3160.1,0.90699264]
[1763484672568,0.498,3160.9,3160.1,0.6449983]
[1763484672769,0.498,3160.9,3159.8,0.273]
[1763484673177,0.498,3160.9,3159.3,0.8266227]
[1763484673390,0.498,3160.9,3159.4,0.273]
[1763484673594,0.498,3160.9,3159.3,0.63019621]
[1763484673772,0.498,3160.9,3159.1,0.96996907]
[1763484674117,0.498,3160.9,3159.1,0.82826907]
[1763484674292,0.1902,3159.2,3159.1,0.82826907]
[1763484675305,0.1902,3159.2,3159.1,1.23377307]
[1763484675540,0.1902,3159.2,3159.1,0.82826907]
[1763484675938,0.1902,3159.2,3159.1,1.23377307]
[1763484676242,0.498,3159.7,3159.2,0.405504]
[1763484676406,0.1902,3160.0,3159.2,0.405504]
[1763484676607,0.498,3159.9,3159.2,0.405504]
[1763484676938,0.499,3159.3,3159.2,0.405504]
[1763484677237,0.499,3159.3,3159.1,0.82826907]
[1763484677533,0.498,3159.9,3159.1,0.82826907]
[1763484677744,0.498,3159.9,3159.2,0.405504]
[1763484678141,0.499,3159.3,3159.2,0.405504]
[1763484678647,0.997,3159.3,3159.2,0.405504]
[1763484678851,0.499,3159.3,3159.2,0.405504]
[1763484679538,0.498,3159.7,3159.2,0.405504]
[1763484679739,0.499,3159.3,3159.2,0.405504]
[1763484680106,0.997,3159.3,3159.2,0.405504]
[1763484680308,0.997,3159.3,3159.1,0.001]
[1763484680518,0.8258,3159.2,3159.1,0.001]
[1763484681923,0.4636,3159.8,3159.1,0.001]
[1763484682811,0.4927,3159.2,3159.1,0.001]
[1763484684854,0.9563,3159.2,3159.1,0.001]
[1763484685451,0.4636,3159.8,3159.1,0.001]
[1763484686711,0.4636,3159.8,3159.2,0.405504]
[1763484687322,0.1902,3160.0,3159.2,0.405504]
[1763484687610,0.6538,3160.0,3159.2,0.405504]
[1763484688250,0.4927,3159.3,3159.1,0.001]
[1763484688615,0.1902,3160.0,3159.1,0.001]
[1763484688616,0.8661,3159.2,3159.1,0.001]
[1763484692113,0.4636,3159.6,3159.1,0.001]
[1763484692333,0.4927,3159.2,3159.1,0.001]
[1763484692857,0.9563,3159.2,3159.1,0.001]
[1763484694220,0.9563,3159.2,3158.8,0.001]
[1763484694352,0.5919,3158.9,3158.5,0.001]
[1763484694531,0.4851,3158.6,3158.5,0.001]
[1763484694969,0.9487,3158.6,3158.5,0.001]
[1763484697240,0.9487,3158.6,3158.3,0.001]
[1763484697439,0.1894,3158.9,3158.2,588.005]
[1763484697440,0.4643,3158.3,3158.2,588.005]
[1763484697827,0.9418,3158.3,3158.2,588.005]
[1763484699544,0.9438,3158.3,3158.2,588.005]
[1763484700564,0.002,3158.3,3158.2,588.005]
[1763484700773,0.002,3158.3,3158.2,588.410504]
[1763484700949,0.002,3158.3,3158.2,589.31749664]
[1763484701679,0.002,3158.7,3158.3,1.31249664]
[1763484701975,0.002,3158.7,3158.4,0.405504]
[1763484704334,0.002,3158.7,3158.3,0.90699264]
[1763484704785,0.4795,3158.7,3158.3,0.90699264]
[1763484706151,0.002,3158.7,3158.4,0.405504]
[1763484706347,0.0012,3158.7,3158.4,0.405504]
[1763484706965,0.13,3158.6,3158.2,575.26671036]
[1763484707287,0.02913992,3158.5,3158.2,575.26671036]
[1763484707490,0.13,3158.6,3158.2,575.26671036]
[1763484709889,0.02913992,3158.5,3158.2,575.26671036]
[1763484710037,0.405504,3158.5,3158.2,575.26671036]
[1763484710241,0.90699264,3158.3,3158.2,575.26671036]
[1763484710464,5.00647234,3158.3,3158.2,575.26671036]
[1763484712869,1.66747234,3158.3,3158.2,575.26671036]
[1763484713096,0.46514966,3158.3,3158.2,575.26671036]
[1763484713598,0.76009473,3158.3,3158.2,575.26671036]
[1763484716080,1.16559873,3158.3,3158.2,575.26671036]
[1763484716271,5.41159137,3158.3,3158.2,559.34894968]
[1763484717172,5.44073129,3158.3,3158.2,548.55126746]
[1763484717373,8.01005237,3158.3,3158.2,548.55126746]
[1763484717591,8.68899847,3158.3,3158.2,548.55126746]
[1763484717902,8.68899847,3158.3,3158.2,545.11811953]
[1763484718201,9.16698968,3158.3,3158.2,537.75358524]
[1763484718372,18.73982968,3158.3,3158.2,537.75358524]
[1763484718789,18.73982968,3158.3,3158.2,534.32043731]
[1763484718987,12.18105168,3158.3,3158.2,534.32043731]
[1763484719201,12.18105168,3158.3,3158.2,526.95590302]
[1763484719403,10.22772168,3158.3,3158.2,526.95590302]
[1763484719570,10.22790316,3158.3,3158.2,526.95590302]
[1763484719772,10.22790316,3158.3,3158.2,523.52275509]
[1763484720166,10.22790316,3158.3,3158.2,516.1582208]
[1763484720417,8.30581895,3158.3,3158.2,516.1582208]
[1763484720659,6.09071895,3158.3,3158.2,516.1582208]
[1763484720828,9.43033937,3158.3,3158.2,512.72507287]
[1763484721028,8.68733937,3158.3,3158.2,512.72507287]
[1763484721222,7.79182148,3158.3,3158.2,505.36053858]
[1763484721422,8.25067448,3158.3,3158.2,505.36053858]
[1763484721625,8.65617848,3158.3,3158.2,505.36053858]
[1763484721822,5.68544648,3158.3,3158.2,501.92739065]
[1763484722032,11.85651878,3158.3,3158.2,501.92739065]
[1763484722228,15.94617066,3158.3,3158.2,494.56285636]
[1763484722560,14.42504778,3158.3,3158.2,494.56285636]
[1763484722862,7.61052614,3158.3,3158.2,494.56285636]
[1763484723012,8.92302278,3158.3,3158.2,494.56285636]
[1763484723353,1.66708737,3158.3,3158.2,494.56285636]
[1763484723581,0.002,3158.6,3158.2,494.56285636]
[1763484723711,0.002,3158.6,3158.2,495.03335636]
[1763484724023,0.002,3158.6,3158.3,0.4705]
[1763484724366,0.002,3158.6,3158.2,494.56285636]
[1763484724876,0.002,3158.6,3158.2,495.03335636]
[1763484725047,0.002,3158.6,3158.5,0.4524]
[1763484725445,0.002,3158.6,3158.5,0.9229]
[1763484726047,0.002,3159.3,3158.6,0.4524]
[1763484726452,0.002,3159.3,3159.2,0.1983]
[1763484726847,0.002,3159.3,3158.6,0.457]
[1763484727052,0.002,3159.3,3159.0,0.1983]
[1763484727684,0.002,3159.3,3159.2,0.4835]
[1763484728137,0.002,3159.3,3159.2,0.9405]
[1763484729885,0.002,3159.3,3158.4,0.90699264]
[1763484729886,0.0012,3159.3,3158.8,0.1983]
[1763484730066,0.0012,3159.3,3158.8,0.6553]
[1763484730467,0.0012,3159.3,3158.8,0.1983]
[1763484731700,0.0012,3159.3,3158.1,0.1852]
[1763484731701,0.1679,3158.9,3158.1,0.1852]
[1763484732177,0.2211,3159.3,3158.1,0.1852]
[1763484732349,0.0012,3159.3,3158.3,0.457]
[1763484734343,0.2211,3159.3,3158.2,494.56285636]
[1763484734543,0.1679,3158.3,3158.2,494.56285636]
[1763484734743,0.405504,3159.2,3158.2,494.56285636]
[1763484734987,0.1679,3158.3,3158.2,494.56285636]
[1763484735349,0.1679,3158.3,3158.2,494.34295636]
[1763484735350,0.573404,3158.3,3158.2,494.34295636]
[1763484735682,12.8220629,3158.3,3158.2,491.06744979]
[1763484735883,12.8220629,3158.3,3158.2,467.53622777]
[1763484735884,12.34012324,3158.3,3158.2,467.53622777]
[1763484736087,13.49786483,3158.3,3158.2,459.53781716]
[1763484736446,13.59786482,3158.3,3158.2,433.55762323]
[1763484736757,36.75745202,3158.3,3158.2,428.34372321]
[1763484736956,36.75745202,3158.3,3158.2,427.89863194]
[1763484737160,37.8890794,3158.3,3158.2,426.96985839]
[1763484737453,37.41108819,3158.3,3158.2,415.3371056]
[1763484737667,37.97906809,3158.3,3158.2,414.58242368]
[1763484737978,38.71874321,3158.3,3158.2,414.16919036]
[1763484738188,37.01913593,3158.3,3158.2,414.16919036]
[1763484738550,38.71663456,3158.3,3158.2,414.16919036]
[1763484738852,37.01913593,3158.3,3158.2,414.16919036]
[1763484739046,36.62672789,3158.3,3158.2,414.16919036]
[1763484739450,36.62672789,3158.3,3158.2,403.7973441]
[1763484739670,6.62672789,3158.3,3158.2,403.7973441]
[1763484739875,36.62672789,3158.3,3158.2,403.7973441]
[1763484740064,17.02383584,3158.3,3158.2,403.7973441]
[1763484740260,15.89027861,3158.3,3158.2,403.7973441]
[1763484740464,17.88648945,3158.3,3158.2,403.7973441]
[1763484740665,16.93856444,3158.3,3158.2,403.7973441]
[1763484740860,25.62380743,3158.3,3158.2,403.7973441]
[1763484741059,25.27654035,3158.3,3158.2,403.7973441]
[1763484741262,24.88102561,3158.3,3158.2,403.7973441]
[1763484741470,25.62380743,3158.3,3158.2,403.7973441]
[1763484741881,31.99527343,3158.3,3158.2,403.7973441]
[1763484742384,35.55394179,3158.3,3158.2,392.5207131]
[1763484742683,32.38768147,3158.3,3158.2,391.54035332]
[1763484742853,33.51826522,3158.3,3158.2,391.54035332]
[1763484743052,37.02901847,3158.3,3158.2,391.54035332]
[1763484743504,21.41543962,3158.3,3158.2,391.54035332]
[1763484743654,22.26178131,3158.3,3158.2,391.54035332]
[1763484744002,1.14233198,3158.3,3158.2,391.54035332]
[1763484744213,0.1679,3158.3,3158.2,391.54035332]
[1763484744354,0.95359153,3159.3,3158.2,391.54035332]
[1763484744664,4.68358642,3159.2,3158.2,391.54035332]
[1763484744992,0.405504,3159.0,3158.2,391.54035332]
[1763484745188,1.31249664,3158.8,3158.2,391.54035332]
[1763484745390,0.0012,3159.3,3158.2,391.54035332]